bitfinex/quotes_SOLUSD_20250722
["timestamp","ask_amount","ask_price","bid_price","bid_amount"]
[1753206457024,14.80807941,202.42,202.37,0.1]
[1753206457215,14.80807941,202.42,202.37,0.8]
[1753206457543,4.94022329,202.42,202.38,0.7]
[1753206457744,4.94022329,202.42,202.37,0.1]
[1753206457745,4.94022329,202.42,202.37,14.90807941]
[1753206457923,14.80807941,202.44,202.39,0.7]
[1753206457924,4.94001394,202.43,202.39,0.7]
[1753206458252,19.74809335,202.43,202.39,0.7]
[1753206458541,14.80807941,202.5,202.42,14.80807941]
[1753206458746,19.74635101,202.5,202.44,14.80807941]
[1753206458916,14.80807941,202.46,202.43,0.7]
[1753206459450,26.0,202.49,202.44,0.7]
[1753206459649,4.93802775,202.51,202.46,14.80807941]
[1753206459952,4.93802775,202.51,202.47,0.7]
[1753206460110,4.93771083,202.53,202.47,14.80807941]
[1753206460315,14.80807941,202.56,202.5,14.80807941]
[1753206460538,14.80807941,202.53,202.5,0.7]
[1753206460850,14.80807941,202.53,202.47,0.7]
[1753206461056,14.80807941,202.55,202.48,15.50807941]
[1753206461221,17.27797797,202.57,202.5,14.80807941]
[1753206461222,14.80807941,202.56,202.5,14.80807941]
[1753206461564,17.27797797,202.57,202.45,29.6]
[1753206461565,19.74464454,202.57,202.51,0.7]
[1753206461718,45.74464454,202.57,202.51,0.7]
[1753206461925,45.74464454,202.57,202.51,15.50807941]
[1753206462111,19.74464454,202.57,202.51,15.50807941]
[1753206462437,14.80807941,202.58,202.52,0.7]
[1753206462605,14.80807941,202.57,202.52,0.7]
[1753206463116,14.80807941,202.57,202.53,0.7]
[1753206463313,14.80807941,202.57,202.51,14.80807941]
[1753206463536,14.80807941,202.57,202.54,0.7]
[1753206463836,4.93680884,202.56,202.54,0.7]
[1753206464028,19.74461456,202.58,202.54,0.7]
[1753206464229,4.93653515,202.58,202.51,11.4]
[1753206464550,14.80807941,202.56,202.52,0.7]
[1753206464741,14.80807941,202.57,202.52,0.7]
[1753206464943,14.80807941,202.56,202.52,0.7]
[1753206465144,14.80807941,202.55,202.51,11.4]
[1753206465348,14.80807941,202.56,202.51,11.4]
[1753206465520,17.27733878,202.58,202.51,11.4]
[1753206465849,2.56329591,202.6,202.52,0.7]
[1753206466019,19.7441572,202.59,202.53,14.80807941]
[1753206466548,19.7441572,202.59,202.53,15.50807941]
[1753206466917,14.80807941,202.58,202.53,0.7]
[1753206467317,14.80807941,202.58,202.54,0.71]
[1753206467514,17.27627227,202.59,202.51,11.4]
[1753206467515,14.80807941,202.55,202.51,12.11]
[1753206467734,14.80807941,202.54,202.51,0.71]
[1753206467943,19.74561952,202.53,202.48,12.11]
[1753206468130,14.80807941,202.52,202.48,0.71]
[1753206468517,14.80807941,202.52,202.44,48.6638]
[1753206468717,14.80807941,202.52,202.45,15.51807941]
[1753206469061,4.93583415,202.6,202.51,14.80807941]
[1753206469344,4.93583415,202.6,202.48,55.6]
[1753206469345,14.80807941,202.59,202.52,15.51807941]
[1753206469525,14.80807941,202.59,202.53,14.80807941]
[1753206469937,19.74436805,202.59,202.53,14.80807941]
[1753206470439,14.80807941,202.55,202.49,0.71]
[1753206470644,14.80807941,202.55,202.45,29.6]
[1753206470645,14.80807941,202.5,202.46,0.71]
[1753206470824,14.80807941,202.48,202.43,0.71]
[1753206471142,14.80807941,202.45,202.4,0.71]
[1753206471544,14.80807941,202.46,202.4,44.40807941]
[1753206471742,42.78468397,202.51,202.41,0.71]
[1753206471743,14.80807941,202.47,202.41,0.71]
[1753206471937,14.80807941,202.45,202.41,0.71]
[1753206472236,14.80807941,202.42,202.38,0.03]
[1753206472617,14.80807941,202.42,202.39,0.71]
[1753206472813,14.80807941,202.41,202.38,0.03]
[1753206473256,14.80807941,202.42,202.38,0.74]
[1753206473416,14.80807941,202.41,202.38,0.74]
[1753206473619,14.80807941,202.41,202.38,0.03]
[1753206473842,19.74903499,202.39,202.38,0.03]
[1753206474725,62.53371896,202.39,202.37,0.1]
[1753206474925,14.80807941,202.38,202.37,0.1]
[1753206475125,31.73492495,202.38,202.37,0.1]
[1753206476143,36.67612467,202.38,202.37,0.1]
[1753206476527,36.67612467,202.38,202.37,1e-08]
[1753206476728,42.78468397,202.36,202.35,1e-08]
[1753206476937,42.78468397,202.36,202.26,0.71]
[1753206476938,16.78468397,202.35,202.26,0.71]
[1753206477136,31.59276338,202.34,202.26,0.71]
[1753206477619,31.59276338,202.34,202.25,14.80807941]
[1753206477820,31.59276338,202.34,202.27,0.74]
[1753206478244,36.53493991,202.34,202.27,0.74]
[1753206479246,26.0,202.35,202.3,0.71]
[1753206479440,14.80807941,202.36,202.33,0.74]
[1753206479755,14.80807941,202.34,202.33,0.03]
[1753206480162,36.53493991,202.34,202.33,0.03]
[1753206481128,36.67710148,202.34,202.33,0.03]
[1753206482059,4.94190813,202.36,202.33,0.03]
[1753206482262,14.80807941,202.38,202.33,0.74]
[1753206482434,19.74880812,202.4,202.34,14.80807941]
[1753206482759,19.74880812,202.4,202.35,15.51807941]
[1753206482760,4.94072871,202.4,202.35,15.51807941]
[1753206482928,4.93973523,202.44,202.36,0.71]
[1753206483135,14.80807941,202.4,202.34,15.51807941]
[1753206483334,14.80807941,202.41,202.36,0.71]
[1753206483645,14.80807941,202.39,202.36,0.71]
[1753206483949,14.80807941,202.38,202.33,0.03]
[1753206484332,14.80807941,202.34,202.33,0.03]
[1753206486027,26.0,202.35,202.33,0.03]
[1753206486224,19.75025594,202.34,202.33,0.03]
[1753206487255,26.0,202.3,202.29,0.03]
[1753206487436,16.78468397,202.33,202.29,0.03]
[1753206487633,4.94217653,202.34,202.29,0.74]
[1753206487938,14.80807941,202.33,202.3,0.71]
[1753206488137,4.94217653,202.34,202.31,0.71]
[1753206488342,4.94217653,202.34,202.32,0.71]
[1753206489964,12.49585729,202.37,202.33,0.71]
[1753206489965,4.94144388,202.37,202.33,0.71]
[1753206490140,3.91470786,202.48,202.35,44.40807941]
[1753206490451,14.80807941,202.38,202.35,0.71]
[1753206490847,14.80807941,202.38,202.33,29.6]
[1753206490848,14.80807941,202.36,202.32,0.71]
[1753206491158,14.80807941,202.36,202.33,0.71]
[1753206491459,4.94193229,202.35,202.33,0.71]
[1753206492727,4.94193229,202.35,202.34,0.03]
[1753206494049,4.94168808,202.36,202.34,12.14]
[1753206494241,9.8457651,202.35,202.34,0.03]
[1753206494438,26.77261064,202.35,202.34,0.03]
[1753206495152,9.8457651,202.35,202.34,0.03]
[1753206495658,26.63044907,202.35,202.34,0.03]
[1753206495857,26.63044907,202.35,202.34,1e-08]
[1753206495858,26.77261064,202.35,202.34,1e-08]
[1753206496156,31.71454293,202.35,202.34,1e-08]
[1753206497767,4.94193229,202.35,202.34,1e-08]
[1753206497978,16.78468397,202.35,202.34,1e-08]
[1753206498258,26.63044907,202.35,202.34,1e-08]
[1753206500055,31.71454293,202.35,202.34,1e-08]
[1753206500551,31.57238136,202.35,202.34,1e-08]
[1753206501774,9.8457651,202.37,202.34,0.69000001]
[1753206501945,14.78751423,202.36,202.34,0.69000001]
[1753206502144,14.78751423,202.36,202.34,1e-08]
[1753206502549,4.94149661,202.37,202.34,1e-08]
[1753206502758,4.94149661,202.37,202.35,0.69]
[1753206505087,4.94149661,202.37,202.34,1e-08]
[1753206505578,9.8457651,202.36,202.34,1e-08]
[1753206506164,14.78769739,202.35,202.34,1e-08]
[1753206506375,4.94193229,202.35,202.34,1e-08]
[1753206506584,4.94144388,202.37,202.34,0.69000001]
[1753206506881,4.94144388,202.37,202.35,0.69]
[1753206507357,4.94144388,202.37,202.34,1e-08]
[1753206508058,14.78720898,202.37,202.34,0.69000001]
[1753206508684,4.94144388,202.37,202.34,0.69000001]
[1753206509078,4.94144388,202.37,202.34,1e-08]
[1753206509287,14.78720898,202.37,202.34,1e-08]
[1753206509958,9.8457651,202.36,202.34,1e-08]
[1753206510156,4.94144388,202.37,202.34,1e-08]
[1753206510157,14.78769739,202.35,202.34,1e-08]
[1753206510884,31.71454293,202.35,202.34,1e-08]
[1753206511690,9.8457651,202.39,202.34,1e-08]
[1753206511875,4.94071146,202.4,202.35,9.8457651]
[1753206512078,4.94144388,202.37,202.34,1e-08]
[1753206512690,9.8457651,202.35,202.34,1e-08]
[1753206513461,9.8457651,202.36,202.34,1e-08]
[1753206514261,14.78769739,202.35,202.34,1e-08]
[1753206514457,4.94175079,202.36,202.34,0.69000001]
[1753206515096,26.0,202.39,202.35,0.69]
[1753206515395,9.8457651,202.4,202.36,0.69]
[1753206515689,9.8457651,202.4,202.37,0.69]
[1753206516190,4.94071146,202.4,202.38,0.69]
[1753206516390,5.00026175,202.42,202.39,0.69]
[1753206516580,5.00026175,202.42,202.38,21.2457651]
[1753206516581,5.00026175,202.42,202.4,0.69]
[1753206516993,0.06,202.42,202.41,0.69]
[1753206517480,5.00022329,202.42,202.41,0.69]
[1753206517678,5.00022329,202.42,202.41,10.5357651]
[1753206517679,0.06,202.42,202.41,10.5357651]
[1753206517890,0.06,202.42,202.41,0.69]
[1753206518089,0.06,202.42,202.41,10.5357651]
[1753206519072,0.06,202.42,202.41,45.07623246]
[1753206519382,4.998761,202.48,202.42,1.6368]
[1753206519383,0.06,202.48,202.42,1.6368]
[1753206519582,0.06,202.48,202.47,39.4457651]
[1753206519786,0.06,202.48,202.47,41.69]
[1753206520086,0.06,202.48,202.47,51.5357651]
[1753206520896,0.06,202.48,202.47,21.9357651]
[1753206522193,0.06,202.48,202.47,11.4]
[1753206522888,0.06,202.48,202.47,21.9357651]
[1753206523770,0.06,202.48,202.47,12.09]
[1753206523970,0.06,202.48,202.47,11.4]
[1753206524172,16.78468397,202.47,202.4,0.69]
[1753206524383,0.06,202.48,202.43,9.8457651]
[1753206524604,0.06,202.48,202.46,9.8457651]
[1753206524907,0.06,202.48,202.47,9.8457651]
[1753206525397,0.06,202.48,202.47,10.5357651]
[1753206525615,0.06,202.48,202.47,0.69]
[1753206525908,0.06,202.48,202.47,10.5357651]
[1753206527582,0.06,202.48,202.44,16.33965042]
[1753206527583,0.06,202.48,202.45,9.8457651]
[1753206527776,0.06,202.48,202.45,10.5657651]
[1753206528006,0.06,202.48,202.45,0.72]
[1753206529091,4.99875938,202.48,202.45,0.72]
[1753206529292,4.99875938,202.48,202.44,21.2457651]
[1753206529613,4.99875938,202.48,202.45,0.72]
[1753206530318,0.06,202.48,202.45,0.72]
[1753206530881,16.78468397,202.45,202.39,10.5657651]
[1753206531102,9.8457651,202.44,202.39,0.72]
[1753206531511,9.8457651,202.44,202.4,0.72]
[1753206532103,26.19,202.48,202.43,9.8457651]
[1753206532104,26.06,202.48,202.43,9.8457651]
[1753206532307,0.06,202.48,202.44,10.5657651]
[1753206532516,0.06,202.48,202.45,0.72]
[1753206532918,0.06,202.48,202.46,0.72]
[1753206533108,0.06,202.48,202.47,9.8457651]
[1753206533291,0.06,202.48,202.47,10.5657651]
[1753206533884,0.06,202.52,202.47,22.45966543]
[1753206534118,0.06,202.52,202.51,9.8457651]
[1753206534320,0.06,202.52,202.48,0.72]
[1753206534321,9.9057651,202.52,202.48,11.4]
[1753206534495,26.63044907,202.51,202.44,10.5657651]
[1753206534700,0.06,202.52,202.48,9.8457651]
[1753206534906,0.06,202.52,202.49,9.8457651]
[1753206535204,0.06,202.52,202.49,12.12]
[1753206535616,0.06,202.52,202.5,0.72]
[1753206535917,0.06,202.52,202.49,11.4]
[1753206536091,0.06,202.52,202.49,12.12]
[1753206537602,9.8457651,202.51,202.44,11.4]
[1753206537803,9.8457651,202.51,202.44,21.9657651]
[1753206537996,4.9382716,202.5,202.44,21.9657651]
[1753206538188,4.9382716,202.5,202.45,9.8457651]
[1753206538384,4.9382716,202.5,202.46,0.72]
[1753206538588,9.8457651,202.48,202.43,0.75]
[1753206538804,9.8457651,202.46,202.43,0.03]
[1753206539219,52.63044907,202.44,202.43,0.03]
[1753206539620,52.77261064,202.44,202.43,0.03]
[1753206539815,16.78468397,202.43,202.38,0.03]
[1753206540122,26.63044907,202.39,202.38,0.03]
[1753206540421,4.94071146,202.4,202.38,0.03]
[1753206540595,14.78647656,202.4,202.38,0.03]
[1753206540796,16.78468397,202.39,202.38,0.03]
[1753206541117,26.63044907,202.39,202.38,0.03]
[1753206541510,26.82044907,202.39,202.38,0.03]
[1753206541698,26.63044907,202.39,202.38,0.03]
[1753206541898,31.57140465,202.39,202.38,0.03]
[1753206542794,21.72563955,202.39,202.38,0.03]
[1753206542998,31.57140465,202.39,202.38,0.03]
[1753206543396,30.94095558,202.39,202.38,0.03]
[1753206543727,47.72563955,202.39,202.38,0.03]
[1753206544131,57.57140465,202.39,202.38,0.03]
[1753206544923,42.78468397,202.35,202.34,1e-08]
[1753206545095,52.77261064,202.35,202.34,1e-08]
[1753206545298,52.96261064,202.35,202.34,1e-08]
[1753206545598,42.78468397,202.35,202.34,1e-08]
[1753206545926,16.78468397,202.35,202.34,1e-08]
[1753206546097,21.72661626,202.35,202.34,1e-08]
[1753206546520,26.0,202.38,202.34,1e-08]
[1753206546692,4.94095558,202.39,202.35,9.8457651]
[1753206546896,4.94095558,202.39,202.36,10.5657651]
[1753206547525,4.94070904,202.41,202.36,10.5657651]
[1753206547724,4.94070904,202.41,202.37,0.72]
[1753206548220,4.94070904,202.41,202.38,10.5657651]
[1753206548426,4.94070904,202.41,202.39,0.72]
[1753206549319,52.63044907,202.4,202.34,1e-08]
[1753206549496,26.63044907,202.35,202.34,1e-08]
[1753206550217,31.57238136,202.35,202.34,1e-08]
[1753206550400,21.72661626,202.35,202.34,1e-08]
[1753206550602,31.57238136,202.35,202.34,1e-08]
[1753206550913,21.72661626,202.35,202.34,1e-08]
[1753206551742,31.90454293,202.35,202.34,1e-08]
[1753206553128,31.71454293,202.35,202.34,1e-08]
[1753206553333,21.72661626,202.35,202.34,1e-08]
[1753206553711,45.0969969,202.38,202.34,1e-08]
[1753206553712,4.94168995,202.36,202.34,1e-08]
[1753206554739,21.72612785,202.37,202.34,1e-08]
[1753206555819,52.63044907,202.35,202.34,1e-08]
[1753206556138,52.77261064,202.35,202.34,1e-08]
[1753206556839,40.78769739,202.35,202.34,1e-08]
[1753206557024,57.57238136,202.35,202.34,1e-08]
[1753206557620,57.71454293,202.35,202.34,1e-08]
[1753206557926,57.90454293,202.35,202.34,1e-08]
[1753206558129,47.86877783,202.35,202.34,1e-08]
[1753206558334,57.71454293,202.35,202.34,1e-08]
[1753206558717,57.90454293,202.35,202.34,1e-08]
[1753206559332,31.90454293,202.35,202.34,1e-08]
[1753206559836,21.72661626,202.35,202.34,1e-08]
[1753206560225,31.57238136,202.35,202.34,1e-08]
[1753206560626,42.78468397,202.31,202.29,1e-08]
[1753206560823,26.77261064,202.3,202.29,1e-08]
[1753206561014,31.90576437,202.3,202.29,1e-08]
[1753206561435,22.05999927,202.3,202.29,1e-08]
[1753206561739,47.7278377,202.3,202.29,1e-08]
[1753206561945,57.5736028,202.3,202.29,1e-08]
[1753206562941,57.71576437,202.3,202.29,1e-08]
[1753206563313,57.90576437,202.3,202.29,1e-08]
[1753206564137,57.71576437,202.3,202.29,1e-08]
[1753206564535,57.90576437,202.3,202.29,1e-08]
[1753206564714,57.71576437,202.3,202.29,1e-08]
[1753206565152,57.71576437,202.3,202.22,0.1]
[1753206565153,24.77218397,202.25,202.18,4.165]
[1753206565340,52.63044907,202.19,202.07,0.7]
[1753206565656,52.63044907,202.19,202.08,0.7]
[1753206565657,26.0,202.17,202.08,0.7]
[1753206565824,42.78468397,202.16,202.05,0.7]
[1753206566029,9.8457651,202.11,202.08,0.7]
[1753206566459,9.8457651,202.11,202.09,0.7]
[1753206566952,26.63044907,202.16,202.1,0.7]
[1753206567121,16.78468397,202.19,202.13,9.8457651]
[1753206567322,4.94462025,202.24,202.17,9.8457651]
[1753206567534,14.79038535,202.24,202.18,10.5457651]
[1753206567740,4.94462025,202.24,202.19,10.5457651]
[1753206567920,30.94462025,202.24,202.2,0.7]
[1753206568121,30.94462025,202.24,202.19,9.8457651]
[1753206568122,40.79038535,202.24,202.21,0.7]
[1753206568459,64.08063036,202.44,202.23,9.8457651]
[1753206568460,9.8457651,202.29,202.23,9.8457651]
[1753206568751,9.8457651,202.31,202.25,9.8457651]
[1753206569053,9.8457651,202.32,202.26,10.5457651]
[1753206569219,4.94290939,202.31,202.27,0.7]
[1753206569420,4.94290939,202.31,202.28,0.7]
[1753206569651,4.94290939,202.31,202.29,0.7]
[1753206570331,9.8457651,202.3,202.25,0.7]
[1753206570530,9.8457651,202.3,202.24,9.8457651]
[1753206570729,9.8457651,202.3,202.17,29.74216157]
[1753206570730,26.0,202.27,202.16,10.0]
[1753206570937,17.30018288,202.31,202.18,0.7]
[1753206570938,9.8457651,202.2,202.18,0.7]
[1753206571319,16.78468397,202.18,202.14,0.7]
[1753206571538,9.8457651,202.16,202.14,0.7]
[1753206571950,9.8457651,202.15,202.09,10.5457651]
[1753206572151,0.14216157,202.18,202.1,9.8457651]
[1753206572331,9.8457651,202.16,202.11,0.7]
[1753206572526,9.8457651,202.16,201.95,10.0]
[1753206572527,9.8457651,202.12,201.95,10.0]
[1753206572834,16.78468397,202.12,202.05,0.7]
[1753206573037,4.94875243,202.08,202.05,0.7]
[1753206573555,16.78468397,202.12,202.06,0.7]
[1753206573775,14.7935658,202.11,202.06,0.8]
[1753206573927,9.8457651,202.09,202.06,0.8]
[1753206574856,9.8457651,202.09,202.08,0.7]
[1753206575055,14.79405546,202.09,202.08,0.7]
[1753206575557,4.94829036,202.09,202.08,0.7]
[1753206575759,14.79405546,202.09,202.06,0.1]
[1753206575928,9.8457651,202.07,202.06,0.1]
[1753206576846,16.78468397,202.06,202.02,0.7]
[1753206577024,4.95000495,202.02,202.0,0.03]
[1753206577229,9.8457651,202.01,202.0,0.03]
[1753206578555,9.8457651,202.01,202.0,0.73]
[1753206578759,16.78468397,202.0,201.96,0.7]
[1753206578937,9.8457651,201.97,201.96,0.7]
[1753206579257,14.79699548,201.97,201.96,0.7]
[1753206580355,4.95123038,201.97,201.96,0.7]
[1753206581245,4.95123038,201.97,201.92,9.8457651]
[1753206581246,14.79699548,201.97,201.92,0.7]
[1753206581447,14.79699548,201.97,201.9,47.2249]
[1753206581448,9.8457651,201.95,201.93,0.7]
[1753206581654,9.8457651,201.95,201.9,35.8249]
[1753206581844,9.8457651,201.96,201.94,0.7]
[1753206582155,4.95123038,201.97,201.95,0.7]
[1753206582464,4.95096484,201.99,201.96,0.7]
[1753206582833,4.95096484,201.99,201.97,0.7]
[1753206583151,4.95123038,201.97,201.91,0.7]
[1753206583456,4.95123038,201.97,201.91,10.5457651]
[1753206583457,14.79699548,201.97,201.91,10.5457651]
[1753206583652,14.79699548,201.97,201.92,0.7]
[1753206583850,14.79699548,201.97,201.91,9.8457651]
[1753206584152,9.8457651,201.99,201.93,0.7]
[1753206584369,9.8457651,201.94,201.88,29.6]
[1753206584575,9.8457651,201.92,201.89,0.7]
[1753206584946,9.8457651,201.93,201.9,0.7]
[1753206585346,4.95245641,201.92,201.91,0.7]
[1753206585565,4.95123038,201.97,201.92,0.7]
[1753206585765,9.8457651,201.96,201.93,0.7]
[1753206586067,4.95123038,201.97,201.94,0.7]
[1753206586270,4.95123038,201.97,201.95,0.7]
[1753206586468,9.8457651,202.0,201.95,0.7]
[1753206586683,16.78468397,202.04,201.97,9.8457651]
[1753206586858,26.63044907,202.04,201.98,10.5457651]
[1753206587171,9.8457651,202.01,201.98,0.7]
[1753206587370,14.79615207,202.01,201.98,0.7]
[1753206587559,29.15847133,202.04,201.98,0.7]
[1753206587560,9.8457651,202.04,201.99,0.7]
[1753206587866,9.8457651,202.0,201.95,0.7]
[1753206588083,9.8457651,201.98,201.95,0.7]
[1753206588248,9.8457651,201.97,201.91,9.8457651]
[1753206588454,9.8457651,201.98,201.93,0.7]
[1753206588961,9.8457651,201.97,201.94,0.7]
[1753206589267,9.8457651,201.96,201.9,9.8457651]
[1753206589456,4.95172072,201.95,201.91,0.7]
[1753206589666,14.79748582,201.95,201.92,0.7]
[1753206589860,9.8457651,201.94,201.92,0.7]
[1753206590058,9.8457651,201.93,201.89,0.7]
[1753206590260,9.8457651,201.91,201.87,0.7]
[1753206590573,9.8457651,201.91,201.88,0.7]
[1753206590869,16.78468397,201.94,201.88,0.7]
[1753206591072,9.8457651,201.92,201.88,0.7]
[1753206591775,9.8457651,201.89,201.86,29.6]
[1753206592073,14.79846679,201.91,201.86,29.6]
[1753206592383,14.79846679,201.91,201.86,30.3]
[1753206592589,9.8457651,201.9,201.86,30.3]
[1753206592754,9.8457651,201.89,201.86,0.7]
[1753206592952,9.8457651,201.87,201.79,0.7]
[1753206593253,9.8457651,201.81,201.79,0.7]
[1753206593797,14.8007476,201.82,201.79,0.7]
[1753206594085,14.8007476,201.82,201.8,0.7]
[1753206594384,14.8007476,201.82,201.77,0.7]
[1753206594385,9.8457651,201.81,201.77,0.7]
[1753206594590,9.8457651,201.78,201.74,0.7]
[1753206594754,9.8457651,201.78,201.72,35.8457651]
[1753206594953,9.8457651,201.78,201.75,0.7]
[1753206595157,17.34225829,201.82,201.76,0.7]
[1753206595158,16.78468397,201.81,201.76,0.7]
[1753206595891,4.95540138,201.8,201.75,0.03]
[1753206596183,16.78468397,201.79,201.75,0.03]
[1753206596387,16.78468397,201.81,201.76,0.7]
[1753206597193,16.78468397,201.81,201.75,0.03]
[1753206597854,4.95540138,201.8,201.75,0.03]
[1753206598064,14.9422583,201.76,201.75,0.03]
[1753206598465,14.9422583,201.78,201.75,0.03]
[1753206598951,14.9422583,201.81,201.76,0.7]
[1753206599152,16.78468397,201.83,201.76,0.7]
[1753206599153,14.9422583,201.82,201.77,0.7]
[1753206599563,14.9422583,201.81,201.75,14.9722583]
[1753206599764,14.9422583,201.79,201.75,0.73]
[1753206600074,31.72694227,201.76,201.75,0.03]
[1753206600279,31.86910384,201.76,201.75,0.03]
[1753206600576,32.05910384,201.76,201.75,0.03]
[1753206600799,31.86910384,201.76,201.75,0.03]
[1753206600955,31.72694227,201.76,201.75,0.03]
[1753206601159,4.95392846,201.86,201.75,20.62882356]
[1753206601356,14.9422583,201.85,201.79,14.9422583]
[1753206601563,1.5581,201.89,201.8,15.6422583]
[1753206601778,26.30104141,201.92,201.86,14.9422583]
[1753206601985,14.9422583,201.93,201.87,15.6422583]
[1753206602187,19.89422423,201.94,201.88,14.9422583]
[1753206602378,14.9422583,201.95,201.89,15.6422583]
[1753206602697,14.9422583,201.96,201.89,15.6422583]
[1753206603040,14.9422583,201.96,201.9,15.6422583]
[1753206603401,14.9422583,201.94,201.91,0.7]
[1753206603559,14.9422583,201.92,201.89,0.7]
[1753206603880,19.89501504,201.91,201.85,45.2422583]
[1753206604079,4.95275674,201.91,201.85,0.7]
[1753206604283,14.9422583,201.86,201.81,0.7]
[1753206604466,16.78468397,201.9,201.78,0.7]
[1753206604467,14.9422583,201.83,201.78,0.7]
[1753206604662,14.9422583,201.83,201.79,0.7]
[1753206604866,14.9422583,201.8,201.77,0.03]
[1753206605082,14.9422583,201.79,201.77,0.03]
[1753206605572,16.78468397,201.83,201.77,0.03]
[1753206605573,14.9422583,201.78,201.77,0.03]
[1753206605980,36.68283482,201.78,201.77,0.03]
[1753206606289,36.82499639,201.78,201.77,0.03]
[1753206607291,36.68283482,201.78,201.77,0.03]
[1753206609872,36.87283482,201.78,201.77,0.03]
[1753206610072,36.68283482,201.78,201.77,0.03]
[1753206610285,21.74057652,201.78,201.77,0.03]
[1753206610485,36.68283482,201.78,201.77,0.03]
[1753206611991,36.87283482,201.78,201.77,0.03]
[1753206612296,36.68283482,201.78,201.77,0.03]
[1753206612693,14.9422583,201.8,201.77,0.03]
[1753206612895,4.95517856,201.81,201.77,0.73]
[1753206612896,19.89743686,201.81,201.77,0.73]
[1753206613380,14.9422583,201.78,201.77,0.03]
[1753206614072,36.68283482,201.78,201.77,0.03]
[1753206614903,26.0,201.76,201.75,0.03]
[1753206615201,57.86910384,201.76,201.75,0.03]
[1753206615372,58.05910384,201.76,201.75,0.03]
[1753206615985,62.68332609,201.76,201.75,0.03]
[1753206616390,63.01548766,201.76,201.75,0.03]
[1753206616780,63.01548766,201.76,201.75,1e-08]
[1753206617295,57.98244772,201.76,201.75,1e-08]
[1753206619302,57.79244772,201.76,201.75,1e-08]
[1753206619600,57.98244772,201.76,201.75,1e-08]
[1753206621382,0.14216157,201.75,201.7,0.03]
[1753206621587,26.8360639,201.71,201.7,0.03]
[1753206622278,31.79367631,201.71,201.7,0.03]
[1753206622683,21.88445795,201.71,201.7,0.03]
[1753206622903,16.78468397,201.71,201.7,0.71]
[1753206623103,12.3892222,201.79,201.7,10.61921836]
[1753206623311,9.90921836,201.75,201.71,0.68]
[1753206623516,9.90921836,201.75,201.72,0.68]
[1753206623806,9.90921836,201.75,201.7,0.03]
[1753206623807,9.90921836,201.75,201.73,0.68]
[1753206623979,26.69390233,201.75,201.74,0.68]
[1753206624186,26.69390233,201.75,201.71,0.68]
[1753206624379,26.69390233,201.75,201.7,0.03]
[1753206624380,4.95687518,201.74,201.72,0.68]
[1753206624590,21.74136569,201.75,201.73,0.68]
[1753206624817,21.74136569,201.75,201.74,0.68]
[1753206625197,16.78468397,201.78,201.74,0.68]
[1753206625412,16.78468397,201.78,201.75,0.68]
[1753206625596,16.78468397,201.78,201.76,0.68]
[1753206626032,9.90921836,201.8,201.77,0.68]
[1753206626218,16.78468397,201.82,201.78,0.68]
[1753206626522,16.78468397,201.82,201.72,29.6]
[1753206626523,31.64883803,201.82,201.79,0.68]
[1753206626819,31.64883803,201.82,201.71,26.0]
[1753206626820,16.78468397,201.79,201.75,0.68]
[1753206627020,9.90921836,201.77,201.73,0.68]
[1753206627389,16.78468397,201.79,201.76,0.03]
[1753206627595,26.69390233,201.79,201.77,0.68]
[1753206627787,9.90921836,201.79,201.76,0.03]
[1753206627986,4.9549357,201.82,201.77,10.58921836]
[1753206628190,21.73961967,201.82,201.77,9.90921836]
[1753206628427,21.73961967,201.82,201.78,0.68]
[1753206628717,14.86365053,201.84,201.79,0.68]
[1753206628893,4.95443217,201.84,201.79,10.58921836]
[1753206629087,14.8634062,201.85,201.8,0.68]
[1753206629320,9.90921836,201.84,201.81,0.68]